bitfinex/quotes_BTCUSD_20241011
["timestamp","ask_amount","ask_price","bid_price","bid_amount"]
[1728688379060,0.001638,62568.0,62567.0,1.08663768]
[1728688379276,0.001638,62568.0,62567.0,1.11463768]
[1728688379488,0.001638,62568.0,62567.0,1.11363768]
[1728688379693,0.001638,62568.0,62567.0,1.11463768]
[1728688379915,0.001638,62568.0,62567.0,1.08867917]
[1728688380104,0.001638,62568.0,62567.0,1.11462393]
[1728688380397,0.001638,62568.0,62567.0,1.13857298]
[1728688380837,0.001638,62568.0,62567.0,1.13357298]
[1728688381054,0.001638,62568.0,62567.0,1.13857298]
[1728688381266,0.001638,62568.0,62567.0,1.13835765]
[1728688381707,0.001638,62568.0,62567.0,1.01862495]
[1728688381924,0.00164,62572.0,62571.0,0.00073573]
[1728688382153,0.00164,62572.0,62571.0,0.65561051]
[1728688382586,0.00164,62572.0,62571.0,0.605655]
[1728688383281,0.00164,62572.0,62571.0,0.34365395]
[1728688383536,0.00164,62572.0,62571.0,0.396541]
[1728688384213,0.00164,62572.0,62571.0,0.30676396]
[1728688384842,0.00164,62572.0,62571.0,0.31576396]
[1728688385466,0.00164,62572.0,62571.0,0.30476396]
[1728688385886,0.00164,62572.0,62571.0,0.30976396]
[1728688386103,0.00164,62572.0,62571.0,0.30975298]
[1728688386328,0.00164,62572.0,62571.0,0.80221421]
[1728688386554,0.00164,62572.0,62571.0,0.56237699]
[1728688386781,0.00164,62572.0,62571.0,0.65637699]
[1728688386993,0.00164,62572.0,62571.0,0.65837699]
[1728688387217,0.00164,62572.0,62571.0,0.70526698]
[1728688387705,0.00164,62572.0,62571.0,0.70626698]
[1728688387935,0.00164,62572.0,62571.0,0.69226698]
[1728688388144,0.00164,62572.0,62571.0,0.70626698]
[1728688388583,0.00164,62588.0,62587.0,0.00073573]
[1728688388802,0.00164,62588.0,62587.0,0.2815079]
[1728688389010,0.00164,62588.0,62587.0,0.32040177]
[1728688389222,0.00164,62588.0,62587.0,0.47698364]
[1728688389479,0.00164,62588.0,62587.0,0.45304895]
[1728688389965,0.00164,62588.0,62587.0,0.45304631]
[1728688390202,0.00164,62588.0,62587.0,0.45804631]
[1728688390620,0.00164,62588.0,62587.0,0.46304631]
[1728688391083,0.00164,62588.0,62587.0,0.45304631]
[1728688391546,0.00164,62588.0,62587.0,0.46404631]
[1728688392004,0.00164,62588.0,62587.0,0.47804631]
[1728688392746,0.00164,62588.0,62587.0,0.46704631]
[1728688392994,0.00164,62588.0,62587.0,0.47904631]
[1728688393759,0.00164,62588.0,62587.0,0.46504631]
[1728688394000,0.00164,62588.0,62587.0,0.47904631]
[1728688396219,0.00164,62588.0,62587.0,0.47903832]
[1728688398440,0.00111697,62588.0,62587.0,0.39863832]
[1728688398657,0.00111697,62588.0,62587.0,0.30223832]
[1728688400062,0.00111697,62588.0,62587.0,0.28728977]
[1728688400313,0.00111697,62588.0,62587.0,0.30223978]
[1728688402248,0.00164,62597.0,62596.0,0.159754]
[1728688402491,0.00164,62597.0,62596.0,0.35543412]
[1728688402736,0.00164,62597.0,62596.0,0.35223974]
[1728688403521,0.00164,62597.0,62596.0,0.36023974]
[1728688404378,0.00164,62597.0,62596.0,0.35523974]
[1728688404805,0.00164,62597.0,62596.0,0.36323974]
[1728688405028,0.00164,62597.0,62596.0,0.37123974]
[1728688405751,0.00022,62615.0,62606.0,0.02373573]
[1728688405979,0.23664158,62612.0,62606.0,0.71659283]
[1728688406201,0.00022,62615.0,62606.0,0.71659283]
[1728688406633,0.00022,62615.0,62606.0,0.71859283]
[1728688407087,0.00022,62615.0,62606.0,0.71659283]
[1728688407309,0.00022,62615.0,62606.0,0.17541474]
[1728688407521,0.00022,62615.0,62606.0,0.37696882]
[1728688407983,0.00022,62615.0,62609.0,0.99836]
[1728688408206,0.00022,62615.0,62614.0,0.26122077]
[1728688408666,0.00022,62615.0,62614.0,0.26441457]
[1728688408893,0.08896,62620.0,62618.0,0.00073573]
[1728688409564,0.0801,62621.0,62618.0,0.16043273]
[1728688410701,0.0751,62621.0,62618.0,0.39707431]
[1728688410910,0.0751,62621.0,62618.0,0.16043273]
[1728688411122,0.0751,62621.0,62618.0,0.16643273]
[1728688411317,0.0811,62621.0,62618.0,0.16643273]
[1728688411591,0.0811,62621.0,62618.0,0.00973573]
[1728688412515,0.00912134,62620.0,62618.0,0.16943373]
[1728688413017,0.00912134,62620.0,62618.0,0.16343373]
[1728688413263,0.00912134,62620.0,62618.0,0.16843373]
[1728688413516,0.00912134,62620.0,62618.0,0.16343373]
[1728688413979,0.00912134,62620.0,62618.0,0.00973573]
[1728688414212,0.00912134,62620.0,62619.0,0.159695]
[1728688414671,0.006,62621.0,62619.0,0.159695]
[1728688415312,0.00912134,62620.0,62619.0,0.163695]
[1728688415971,0.00912134,62620.0,62619.0,0.159695]
[1728688416178,0.00912134,62620.0,62619.0,0.162695]
[1728688416387,0.00912134,62620.0,62619.0,0.168695]
[1728688417281,0.00912134,62620.0,62619.0,0.165695]
[1728688417735,0.00912134,62620.0,62619.0,0.169695]
[1728688418665,0.00764,62621.0,62620.0,0.159693]
[1728688418881,0.00764,62621.0,62619.0,0.01]
[1728688419093,0.00764,62621.0,62620.0,0.159693]
[1728688419964,0.00764,62621.0,62620.0,0.164693]
[1728688420706,0.00764,62621.0,62620.0,0.16788662]
[1728688420956,0.00764,62621.0,62620.0,0.17162235]
[1728688422232,0.00764,62621.0,62620.0,0.16842873]
[1728688428960,0.00764,62621.0,62620.0,0.51252307]
[1728688429180,0.00764,62621.0,62620.0,0.70962978]
[1728688430284,0.00764,62621.0,62620.0,0.72462978]
[1728688430524,0.00164,62631.0,62630.0,0.00073573]
[1728688430752,0.0005,62639.0,62630.0,0.00073573]
[1728688430753,0.0005,62639.0,62634.0,0.00073573]
[1728688430978,0.0005,62639.0,62638.0,0.56535977]
[1728688431193,0.0005,62639.0,62638.0,0.77612947]
[1728688431635,0.0005,62639.0,62638.0,0.62580674]
[1728688431851,0.0005,62639.0,62638.0,0.72658378]
[1728688432327,0.0005,62639.0,62638.0,0.72458378]
[1728688432593,0.0005,62639.0,62638.0,0.72658378]
[1728688433439,0.0005,62639.0,62638.0,0.75458378]
[1728688435784,0.0005,62639.0,62638.0,0.85536082]
[1728688437190,0.0005,62639.0,62638.0,0.75458378]
[1728688439651,0.0005,62639.0,62638.0,1.0900024]
[1728688439905,0.0001,62646.0,62645.0,0.64311881]
[1728688440147,0.0001,62646.0,62645.0,0.82734282]
[1728688440389,0.0005,62659.0,62658.0,0.76686285]
[1728688440637,0.0005,62659.0,62658.0,0.82730982]
[1728688440894,0.0005,62659.0,62658.0,0.87466476]
[1728688441269,0.0005,62659.0,62658.0,0.82730982]
[1728688441955,0.0005,62659.0,62658.0,0.82704692]
[1728688442666,0.0005,62659.0,62658.0,0.77426041]
[1728688442901,0.0005,62659.0,62658.0,0.78826041]
[1728688443400,0.0005,62659.0,62658.0,0.80226041]
[1728688443662,0.0005,62659.0,62658.0,0.80696523]
[1728688443903,0.016637,62678.0,62677.0,0.159548]
[1728688443904,0.013777,62678.0,62677.0,0.159548]
[1728688444672,0.013777,62678.0,62677.0,0.39618958]
[1728688444904,0.013777,62678.0,62677.0,0.16002083]
[1728688445413,0.013777,62678.0,62677.0,0.1722114]
[1728688445665,0.013777,62678.0,62677.0,0.1632114]
[1728688445904,0.013777,62678.0,62677.0,0.1752114]
[1728688446147,0.013777,62678.0,62677.0,0.1872114]
[1728688446389,0.013777,62678.0,62677.0,0.1752114]
[1728688446625,0.013777,62678.0,62677.0,0.1772114]
[1728688446872,0.013777,62678.0,62677.0,0.1902114]
[1728688448076,0.013777,62678.0,62677.0,0.42685298]
[1728688448310,0.013777,62678.0,62677.0,0.18702083]
[1728688448532,0.013777,62678.0,62677.0,0.19021117]
[1728688448754,0.013777,62678.0,62677.0,0.17621117]
[1728688449248,0.013777,62678.0,62677.0,0.17721117]
[1728688449717,0.013777,62678.0,62677.0,0.19121117]
[1728688449952,0.013777,62678.0,62677.0,0.17721117]
[1728688451420,0.013717,62678.0,62677.0,0.19121117]
[1728688451892,0.013717,62678.0,62677.0,0.19100089]
[1728688452380,0.013717,62678.0,62677.0,0.18781055]
[1728688452661,0.013657,62678.0,62677.0,0.18781055]
[1728688453129,0.0221825,62678.0,62677.0,0.18781055]
[1728688453366,0.0238205,62678.0,62677.0,0.18781055]
[1728688453613,0.0237605,62678.0,62677.0,0.18781055]
[1728688453848,0.015235,62678.0,62677.0,0.18781055]
[1728688454052,0.0237605,62678.0,62677.0,0.18781055]
[1728688454711,0.015175,62678.0,62677.0,0.18781055]
[1728688455800,0.015115,62678.0,62677.0,0.18781055]
[1728688456530,0.159993,62699.0,62694.0,0.159504]
[1728688456756,0.159993,62699.0,62694.0,0.4137444]
[1728688456757,0.23664158,62697.0,62694.0,0.4137444]
[1728688456967,0.0005,62699.0,62694.0,0.4137444]
[1728688458496,0.0005,62699.0,62694.0,0.4257444]
[1728688458746,0.0005,62699.0,62694.0,0.4397444]
[1728688459189,0.0005,62699.0,62698.0,0.3087344]
[1728688459487,0.0005,62699.0,62698.0,0.46995841]
[1728688460459,0.0005,62699.0,62698.0,0.48395841]
[1728688461368,0.0005,62699.0,62698.0,0.49795841]
[1728688463434,0.0005,62699.0,62698.0,0.73459999]
[1728688463667,0.0005,62699.0,62698.0,0.60295841]
[1728688465501,0.0005,62699.0,62698.0,0.70865841]
[1728688466118,0.0005,62699.0,62698.0,0.85742598]
[1728688466337,0.0005,62699.0,62698.0,0.70865841]
[1728688466538,0.0005,62699.0,62698.0,0.53189084]
[1728688466806,0.0005,62699.0,62698.0,0.69922633]
[1728688466977,0.001318,62699.0,62698.0,0.69422633]
[1728688467184,0.001318,62699.0,62698.0,0.69922633]
[1728688467423,0.001318,62699.0,62698.0,0.68522633]
[1728688467637,0.001318,62699.0,62698.0,0.69922633]
[1728688468282,0.001318,62699.0,62698.0,0.71322633]
[1728688468509,0.001318,62699.0,62698.0,0.63052633]
[1728688468755,0.001318,62699.0,62698.0,0.60752633]
[1728688468968,0.001318,62699.0,62698.0,0.45875876]
[1728688469208,0.001318,62699.0,62698.0,0.60752633]
[1728688470388,0.001318,62699.0,62698.0,0.4417344]
[1728688470671,0.001318,62699.0,62698.0,0.28796683]
[1728688471610,0.001318,62699.0,62698.0,0.29615607]
[1728688472717,0.001318,62699.0,62698.0,0.29296683]
[1728688472940,0.001318,62699.0,62698.0,0.28796683]
[1728688479099,0.001318,62699.0,62698.0,0.18796683]
[1728688480291,0.001318,62699.0,62698.0,0.60550841]
[1728688480517,0.001318,62699.0,62698.0,0.36886683]
[1728688481040,0.001318,62699.0,62698.0,0.18796683]
[1728688483061,0.159467,62709.0,62698.0,0.18796683]
[1728688483062,0.0798,62730.0,62718.0,0.00047283]
[1728688483299,0.37635948,62733.0,62718.0,0.31187177]
[1728688483300,0.23714158,62719.0,62718.0,0.31187177]
[1728688483533,0.0005,62719.0,62718.0,0.31187177]
[1728688484622,0.0005,62719.0,62718.0,0.32587177]
[1728688484842,0.0005,62719.0,62718.0,0.3226834]
[1728688485056,0.0005,62719.0,62718.0,0.3306834]
[1728688485492,0.0005,62719.0,62718.0,0.3226834]
[1728688485934,0.0005,62719.0,62718.0,0.3366834]
[1728688486620,0.39228658,62733.0,62718.0,0.3226834]
[1728688486836,0.39228658,62733.0,62724.0,0.46762057]
[1728688487050,0.39228658,62733.0,62729.0,0.159415]
[1728688487329,0.318803,62735.0,62725.0,0.00047283]
[1728688487558,0.159412,62731.0,62727.0,0.159419]
[1728688487769,0.159406,62733.0,62728.0,0.159417]
[1728688487999,0.0096359,62730.0,62729.0,0.159413]
[1728688488231,0.159405,62733.0,62729.0,0.159413]
[1728688488232,0.159406,62733.0,62729.0,0.159413]
[1728688488449,0.00964577,62730.0,62729.0,0.159413]
[1728688488659,0.159409,62732.0,62727.0,0.159419]
[1728688488876,0.159409,62732.0,62728.0,0.159417]
[1728688489098,0.0096565,62731.0,62728.0,0.159417]
[1728688489538,0.0096565,62731.0,62729.0,0.004]
[1728688490004,0.0096565,62731.0,62728.0,0.159417]
[1728688490217,0.0096565,62731.0,62728.0,0.171417]
[1728688490433,0.159414,62730.0,62728.0,0.005]
[1728688490657,0.0096565,62731.0,62728.0,0.005]
[1728688490872,0.159411,62731.0,62729.0,0.008]
[1728688491087,0.318814,62733.0,62728.0,0.005]
[1728688491307,0.47822,62733.0,62728.0,0.005]
[1728688491536,0.159413,62730.0,62727.0,0.001636]
[1728688491762,0.159414,62730.0,62727.0,0.001636]
[1728688491999,0.318816,62732.0,62727.0,0.001636]
[1728688492000,0.159417,62729.0,62727.0,0.001636]
[1728688492200,0.159414,62730.0,62727.0,0.001636]
[1728688492406,0.318816,62732.0,62728.0,0.008]
[1728688492626,0.318816,62732.0,62728.0,0.004]
[1728688492627,0.159415,62730.0,62728.0,0.004]
[1728688493067,0.159416,62729.0,62727.0,0.011636]
[1728688493278,0.159416,62729.0,62727.0,0.009636]
[1728688493499,0.159414,62730.0,62728.0,0.007]
[1728688493718,0.000818,62733.0,62727.0,0.009636]
[1728688493948,0.159414,62730.0,62727.0,0.009636]
[1728688494159,0.159414,62730.0,62728.0,0.01]
[1728688494368,0.318819,62732.0,62728.0,0.01]
[1728688494587,0.159415,62729.0,62728.0,0.01]
[1728688494848,0.159415,62729.0,62728.0,0.017]
[1728688495327,0.318819,62732.0,62727.0,0.001636]
[1728688495556,0.159418,62728.0,62727.0,0.001636]
[1728688495785,0.240718,62728.0,62727.0,0.011636]
[1728688496020,0.240718,62728.0,62727.0,0.001636]
[1728688497430,0.240718,62728.0,62727.0,0.013636]
[1728688497883,0.240718,62728.0,62727.0,0.022636]
[1728688499201,0.55070958,62728.0,62727.0,0.022636]
[1728688500109,0.87952653,62728.0,62727.0,0.022636]
[1728688500333,0.80008638,62728.0,62727.0,0.022636]
[1728688500552,0.80008552,62728.0,62727.0,0.013636]
[1728688500774,0.84674876,62728.0,62727.0,0.013636]
[1728688500993,0.84674876,62728.0,62727.0,0.016636]
[1728688501223,1.20787039,62728.0,62727.0,0.016636]
[1728688501461,1.23164106,62728.0,62727.0,0.013636]
[1728688501684,1.23164106,62728.0,62720.0,0.0497651]
[1728688501685,0.28896317,62721.0,62720.0,0.0497651]
[1728688501906,0.86155406,62721.0,62720.0,0.0497651]
[1728688502124,0.86155406,62721.0,62716.0,0.23664158]
[1728688502125,0.00452717,62717.0,62716.0,0.23664158]
[1728688502341,0.66056475,62717.0,62716.0,0.23664158]
[1728688502528,0.159466,62709.0,62708.0,0.28575188]
[1728688502793,0.41143485,62709.0,62708.0,0.28575188]
[1728688503024,0.159484,62702.0,62692.0,0.23664158]
[1728688503264,0.159484,62702.0,62696.0,0.0496622]
[1728688503265,0.32070801,62702.0,62696.0,0.0496622]
[1728688503482,0.32070801,62702.0,62692.0,0.23664158]
[1728688503483,0.16122401,62702.0,62692.0,0.23664158]
[1728688503706,0.159499,62696.0,62692.0,0.23664158]
[1728688504161,0.16880673,62696.0,62692.0,0.23664158]
[1728688504384,0.16880673,62696.0,62695.0,0.02551104]
[1728688505041,0.16880673,62696.0,62695.0,0.001636]
[1728688505510,0.16980673,62696.0,62695.0,0.009636]
[1728688505975,0.01030773,62696.0,62695.0,0.009636]
[1728688506229,0.16980673,62696.0,62695.0,0.015636]
[1728688511605,0.01030773,62696.0,62695.0,0.015636]
[1728688511826,0.01030773,62696.0,62695.0,0.19636274]
[1728688512289,0.001,62696.0,62695.0,0.19636274]
[1728688512976,0.318892,62718.0,62695.0,0.19636274]
[1728688512977,0.23664158,62730.0,62729.0,0.159415]
[1728688513205,0.23664158,62730.0,62728.0,0.00047283]
[1728688513206,0.24627728,62730.0,62728.0,0.00047283]
[1728688513679,0.0096357,62730.0,62728.0,0.00047283]
[1728688514135,0.000818,62733.0,62728.0,0.00047283]
[1728688514360,0.00946671,62729.0,62728.0,0.00047283]
[1728688514575,0.000818,62733.0,62728.0,0.00047283]
[1728688514803,0.00951324,62732.0,62729.0,0.159414]
[1728688515016,0.001,62730.0,62729.0,0.007]
[1728688515489,0.01041717,62730.0,62728.0,0.00547283]
[1728688515686,0.001,62729.0,62728.0,0.17588983]
[1728688515910,0.001,62729.0,62728.0,0.16488983]
[1728688516131,0.001,62729.0,62728.0,0.00047283]
[1728688516361,0.001,62729.0,62728.0,0.15989083]
[1728688516619,0.001,62730.0,62729.0,0.159415]
[1728688516847,0.002,62730.0,62728.0,0.01847283]
[1728688517064,0.002,62730.0,62729.0,0.159415]
[1728688517065,0.01144211,62730.0,62729.0,0.159415]
[1728688517282,0.002,62730.0,62729.0,0.159415]
[1728688517505,0.01144211,62730.0,62729.0,0.159415]
[1728688517722,0.002,62730.0,62728.0,0.01547283]
[1728688517971,0.001,62730.0,62728.0,0.01047283]
[1728688518208,0.00944445,62729.0,62728.0,0.00047283]
[1728688518407,0.01044445,62729.0,62728.0,0.16789083]
[1728688518632,0.001,62729.0,62728.0,0.15989083]
[1728688518841,0.001,62729.0,62728.0,0.16989083]
[1728688519285,0.000818,62733.0,62728.0,0.15988883]
[1728688519514,0.000818,62733.0,62730.0,0.159411]
[1728688519741,0.00948643,62732.0,62730.0,0.159411]
[1728688520289,0.00948643,62732.0,62728.0,0.15988983]
[1728688520478,0.00948643,62732.0,62729.0,0.159414]
[1728688520721,0.00948643,62732.0,62728.0,0.00847283]
[1728688520935,0.00948643,62732.0,62729.0,0.159413]
[1728688521404,0.00948643,62732.0,62728.0,0.00047283]
[1728688521629,0.00948643,62732.0,62728.0,0.31930783]
[1728688521887,0.01048643,62732.0,62729.0,0.009]
[1728688522138,0.001,62732.0,62729.0,0.168413]
[1728688522374,0.00945197,62731.0,62729.0,0.009]
[1728688522592,0.00944211,62730.0,62729.0,0.159415]
[1728688522811,0.00944211,62730.0,62728.0,0.00647283]
[1728688523002,0.00944211,62730.0,62728.0,0.17488883]
[1728688523264,0.001,62732.0,62729.0,0.159415]
[1728688523487,0.001,62732.0,62728.0,0.00947283]
[1728688523916,0.001,62732.0,62729.0,0.007]
[1728688523917,0.15941,62731.0,62729.0,0.007]
[1728688524163,0.000818,62733.0,62729.0,0.007]
[1728688524355,0.159409,62732.0,62729.0,0.007]
[1728688524524,0.001,62731.0,62729.0,0.017]
[1728688524746,0.001,62731.0,62729.0,0.01]
[1728688524948,0.16041,62731.0,62729.0,0.01]
[1728688525330,0.15941,62731.0,62728.0,0.00047283]
[1728688525597,0.159415,62730.0,62729.0,0.009]
[1728688525820,0.319819,62732.0,62729.0,0.009]
[1728688525991,0.159412,62731.0,62726.0,0.159422]
[1728688526195,0.159411,62731.0,62725.0,0.480174]
[1728688526401,0.159411,62731.0,62726.0,0.159423]
[1728688526638,0.159411,62731.0,62728.0,0.006]
[1728688526772,0.160408,62732.0,62728.0,0.006]
[1728688526984,0.160408,62732.0,62728.0,0.00047283]
[1728688527405,0.001,62731.0,62729.0,0.01]
[1728688527617,0.16041,62731.0,62726.0,0.159421]
[1728688527820,0.16041,62731.0,62725.0,0.327751]
[1728688527821,0.16041,62731.0,62728.0,0.00047283]
[1728688528044,0.16041,62731.0,62728.0,0.00947283]
[1728688528045,0.001,62731.0,62728.0,0.00947283]
[1728688528248,0.15941,62732.0,62726.0,0.159422]
[1728688528447,0.159411,62731.0,62726.0,0.159422]
[1728688528660,0.001,62731.0,62729.0,0.01]
[1728688528891,0.001,62731.0,62725.0,0.320751]
[1728688529151,0.001,62731.0,62728.0,0.016]
[1728688529152,0.002,62731.0,62728.0,0.016]
[1728688529560,0.161411,62731.0,62728.0,0.016]
[1728688529771,0.161411,62731.0,62728.0,0.01]
[1728688529772,0.159414,62730.0,62728.0,0.01]
[1728688529978,0.16141,62731.0,62728.0,0.01047283]
[1728688530188,0.002,62731.0,62728.0,0.01047283]
[1728688530393,0.16141,62731.0,62728.0,0.01047283]
[1728688530594,0.002,62731.0,62728.0,0.01047283]
[1728688530817,0.159415,62730.0,62728.0,0.01547283]
[1728688531037,0.16204201,62733.0,62728.0,0.00547283]
[1728688531248,0.159411,62731.0,62728.0,0.00547283]
[1728688531472,0.159413,62730.0,62729.0,0.01]
[1728688531684,0.160411,62731.0,62728.0,0.00547283]
[1728688531899,0.001,62731.0,62728.0,0.00547283]
[1728688532115,0.001,62730.0,62729.0,0.159413]
[1728688532327,0.001,62730.0,62729.0,0.159415]
[1728688532538,0.00977923,62730.0,62729.0,0.167415]
[1728688532756,0.00977923,62730.0,62729.0,0.008]
[1728688533179,0.00977923,62730.0,62729.0,0.014]
[1728688533816,0.00777923,62730.0,62729.0,0.006]
[1728688534507,0.160412,62731.0,62729.0,0.006]
[1728688534716,0.00781387,62730.0,62729.0,0.006]
[1728688535351,0.16722687,62730.0,62729.0,0.006]
[1728688535557,0.00781387,62730.0,62729.0,0.006]
[1728688535998,0.00781387,62730.0,62728.0,0.00747283]
[1728688536196,0.00781387,62730.0,62729.0,0.004]
[1728688536615,0.00781387,62730.0,62728.0,0.15989083]
[1728688536835,0.00781387,62730.0,62728.0,0.00047283]
[1728688537045,0.00781387,62730.0,62729.0,0.005]
[1728688537474,0.001,62730.0,62729.0,0.013]
[1728688537686,0.00878299,62730.0,62729.0,0.013]
[1728688537896,0.16719599,62730.0,62728.0,0.00047283]
[1728688538131,0.00878299,62730.0,62728.0,0.00847283]
[1728688538561,0.16719799,62730.0,62728.0,0.00047283]
[1728688538783,0.00860299,62730.0,62728.0,0.00047283]
[1728688539000,0.00960299,62730.0,62729.0,0.008]
[1728688539219,0.00960299,62730.0,62728.0,0.00047283]
[1728688539458,0.00960299,62730.0,62728.0,0.00547283]
[1728688539887,0.00960299,62730.0,62728.0,0.00047283]
[1728688540095,0.00960299,62730.0,62729.0,0.005]
[1728688540309,0.16901599,62730.0,62729.0,0.005]
[1728688540521,0.00960299,62730.0,62728.0,0.00047283]
[1728688540802,0.01060299,62730.0,62728.0,0.00847283]
[1728688541029,0.01060299,62730.0,62728.0,0.00547283]
[1728688541030,0.159415,62729.0,62728.0,0.00547283]
[1728688541479,0.16719062,62729.0,62728.0,0.00547283]
[1728688541918,0.16719062,62729.0,62728.0,0.01347283]
[1728688542340,0.16719062,62729.0,62728.0,0.018]
[1728688542561,0.16719062,62729.0,62728.0,0.013]
[1728688543725,0.16719062,62729.0,62728.0,0.008]
[1728688543967,0.16719062,62729.0,62728.0,0.003]
[1728688544212,0.16719062,62729.0,62728.0,0.008]
[1728688544444,0.16719062,62729.0,62728.0,0.003]
[1728688544898,0.00877562,62729.0,62728.0,0.009]
[1728688545621,0.16819062,62729.0,62728.0,0.009]
[1728688546585,0.00877562,62729.0,62728.0,0.009]
[1728688547050,0.001,62729.0,62728.0,0.16889083]
[1728688547302,0.00877562,62729.0,62728.0,0.00947283]
[1728688552147,0.00877562,62729.0,62728.0,0.16889083]
[1728688552868,0.00877562,62729.0,62728.0,0.00947283]
[1728688558693,0.00877562,62729.0,62728.0,0.16889083]
[1728688559341,0.00877562,62729.0,62728.0,0.00947283]
[1728688559765,0.00877562,62729.0,62728.0,0.16889083]
[1728688560014,0.00877562,62729.0,62728.0,0.00947283]
[1728688561389,0.00877562,62729.0,62728.0,0.16889083]
[1728688561641,0.00877562,62729.0,62728.0,0.00947283]
[1728688563035,0.00959562,62729.0,62728.0,0.00947283]
[1728688565041,0.00959562,62729.0,62728.0,0.009]
[1728688565221,0.00959562,62729.0,62728.0,0.00947283]
[1728688566051,0.00459562,62729.0,62728.0,0.00947283]
[1728688568534,0.00459562,62729.0,62728.0,0.009]
[1728688568782,0.00459562,62729.0,62728.0,0.00947283]
[1728688569577,0.00794117,62729.0,62728.0,0.00947283]
[1728688569794,0.00794117,62729.0,62728.0,0.0082198]
[1728688571094,0.16735617,62729.0,62728.0,0.0082198]
[1728688571316,0.00794117,62729.0,62728.0,0.0082198]
[1728688571483,0.16735617,62729.0,62728.0,0.0082198]
[1728688573356,0.16735617,62729.0,62728.0,0.00774697]
[1728688573563,0.16735617,62729.0,62728.0,0.0082198]
[1728688574433,0.00794117,62729.0,62728.0,0.0082198]
[1728688575070,0.16735617,62729.0,62728.0,0.0082198]
[1728688575512,0.00794117,62729.0,62728.0,0.0082198]
[1728688578144,0.16735617,62729.0,62728.0,0.0082198]
[1728688579342,0.16735617,62729.0,62728.0,0.00774697]
[1728688579601,0.21522279,62729.0,62728.0,0.00774697]
[1728688579830,0.23915555,62729.0,62728.0,0.00774697]
[1728688580272,0.40037956,62729.0,62728.0,0.00774697]
[1728688580517,0.50528343,62729.0,62728.0,0.00774697]
[1728688580772,0.62494907,62729.0,62728.0,0.00774697]
[1728688581444,0.62494907,62729.0,62728.0,0.006]
[1728688581664,0.159423,62726.0,62725.0,0.0019]
[1728688581886,0.39245098,62726.0,62725.0,0.0019]
[1728688583927,0.32064701,62726.0,62725.0,0.0019]
[1728688584379,0.32064701,62726.0,62725.0,0.0049]
[1728688588229,0.32164701,62726.0,62725.0,0.0019]
[1728688588483,0.32164701,62726.0,62725.0,0.0039]
[1728688591284,0.32064701,62726.0,62725.0,0.0019]
[1728688591484,0.32164701,62726.0,62725.0,0.0019]
[1728688591615,0.32164701,62726.0,62725.0,0.0039]
[1728688591842,0.32164701,62726.0,62725.0,0.0019]
[1728688592269,0.32164701,62726.0,62725.0,0.0039]
[1728688592878,0.32064701,62726.0,62725.0,0.0039]
[1728688593365,0.32164701,62726.0,62725.0,0.0039]
[1728688597389,0.51697025,62726.0,62725.0,0.00554]
[1728688597840,0.63376371,62726.0,62725.0,0.00554]
[1728688598062,0.52412628,62726.0,62725.0,0.00554]
[1728688598811,0.62412628,62726.0,62725.0,0.00554]
[1728688599485,0.69932628,62726.0,62725.0,0.00554]
[1728688599729,0.9996876,62726.0,62725.0,0.00554]
[1728688599977,0.88027421,62726.0,62725.0,0.00554]
[1728688600217,0.99968877,62726.0,62725.0,0.00554]
[1728688600472,1.02268877,62726.0,62725.0,0.00554]
[1728688600718,1.12171201,62726.0,62725.0,0.00554]
[1728688600947,1.00229745,62726.0,62725.0,0.00354]
[1728688601227,1.00329745,62726.0,62725.0,0.00454]
[1728688601427,2.45126716,62726.0,62725.0,0.00554]
[1728688601879,2.44200989,62726.0,62725.0,0.00454]
[1728688602096,2.45200989,62726.0,62725.0,0.00554]
[1728688602349,2.45200989,62726.0,62717.0,0.0518349]
[1728688602350,0.18697017,62718.0,62717.0,0.0518349]
[1728688602628,0.99480151,62718.0,62717.0,0.0518349]
[1728688602871,0.99480151,62718.0,62717.0,0.00199]
[1728688602872,1.21065427,62718.0,62717.0,0.00199]
[1728688603612,1.30584832,62718.0,62717.0,0.00199]
[1728688603841,1.49304825,62718.0,62717.0,0.00299]
[1728688604064,2.77064825,62718.0,62717.0,0.00299]
[1728688604316,2.65149716,62718.0,62717.0,0.00299]
[1728688604573,0.45947317,62717.0,62716.0,0.00164]
[1728688604791,2.78870142,62717.0,62716.0,0.00164]
[1728688605028,2.28360802,62717.0,62716.0,0.00164]
[1728688605254,3.18121288,62717.0,62716.0,0.00164]
[1728688605694,3.05155388,62717.0,62716.0,0.00264]
[1728688605913,3.03152588,62717.0,62716.0,0.00264]
[1728688606198,2.97155488,62717.0,62716.0,0.00364]
[1728688606447,2.97155488,62717.0,62716.0,1e-06]
[1728688606448,2.86712684,62717.0,62716.0,1e-06]
[1728688606681,3.06665425,62717.0,62716.0,1e-06]
[1728688607414,2.97144734,62717.0,62716.0,1e-06]
[1728688607646,3.09045598,62717.0,62716.0,1e-06]
[1728688608157,3.09045598,62717.0,62711.0,0.00164]
[1728688608158,0.16598617,62712.0,62711.0,0.00164]
[1728688608378,0.16598617,62712.0,62705.0,0.0492554]
[1728688608379,0.46538817,62711.0,62705.0,0.0492554]
[1728688608613,0.46538817,62711.0,62710.0,1e-06]
[1728688608614,2.28462478,62711.0,62710.0,1e-06]
[1728688608855,2.37981978,62711.0,62710.0,1e-06]
[1728688609105,2.37981978,62711.0,62695.0,0.23827758]
[1728688609106,0.28701917,62699.0,62698.0,0.0492468]
[1728688609330,2.29818966,62699.0,62698.0,0.0492468]
[1728688609561,2.29818966,62699.0,62695.0,0.23827758]
[1728688609562,0.18702617,62696.0,62695.0,0.23827758]
[1728688609811,0.54827342,62696.0,62695.0,0.23827758]
[1728688610089,0.54927342,62696.0,62695.0,0.001636]
[1728688610346,0.55027342,62696.0,62695.0,0.001636]
[1728688610582,0.71164313,62696.0,62695.0,0.001636]
[1728688610812,0.71764313,62696.0,62695.0,0.001636]
[1728688611025,1.99524313,62696.0,62695.0,0.001636]
[1728688611292,2.47859437,62696.0,62695.0,0.001636]
[1728688611499,2.58089437,62696.0,62695.0,0.001636]
[1728688612175,2.59157615,62696.0,62695.0,0.001636]